Cogmind - Beta 12 @@@ ROGUE MODE // 2023.12.10 @ 22:46:31 Player: Lobster Glut Result: Destroyed by G-47 Trooper with Particle Gun Performance ------------- Evolutions (2) 1000 Regions Visited (3) 600 Robots Destroyed (25) 125 Value Destroyed (575) 575 Prototype IDs (7) 140 Alien Tech Used (0) 0 Bonus (0) 0 TOTAL SCORE: 2440 Bonus ------- None Cogmind --------- Core Integrity 0/550 Matter 275/300 Energy 85/300 System Corruption 1% Temperature Cool (18) Movement Core (100) Ox1 Location -8/Materials Parts ------- > --- POWER (2) -------- (None) > --- PROPULSION (3) --- (None) > --- UTILITY (4) ------ Small Storage Unit Compact Battery > --- WEAPON (2) ------- (None) > --- INVENTORY (8) ---- (None) Peak State ------------ > --- POWER ------------ Improved Ion Engine Nuclear Core > --- PROPULSION ------- Wheel Compact Wheel > --- UTILITY ---------- Small Storage Unit Visual Processing Unit Salvage Targeting Computer Light Armor Plating > --- WEAPON ----------- Beam Rifle Mini Grenade Launcher > --- INVENTORY -------- Improved Ion Engine Aluminum Leg Aluminum Leg Assault Rifle [Rating: 17] Favorites ----------- Power Improved Ion Engine Engine Improved Ion Engine Power Core Nuclear Core Propulsion Compact Wheel Treads Light Treads Leg VSS Leg Wheel Compact Wheel Hover Unit Backup Propulsion I Flight Unit Surge Thruster Utility Small Storage Unit Device Hardlight Generator Storage Small Storage Unit Processor Visual Processing Unit Protection Light Armor Plating Weapon Small Laser Energy Gun Small Laser Ballistic Gun Light Assault Rifle Launcher Mini Grenade Launcher Slashing Weapon Blade Saw Build | -11 -10 -9 -8 ------- Run | Jun Mat Mat Mat Slots Evolved 4 | . . 2 2 Power 1 | . . 1 . Propulsion 1 | . . . 1 Utility 2 | . . 1 1 Weapon . | . . . . Parts Attached 48 | 8 3 7 30 Power 9 | 1 2 1 5 Engine 5 | 1 2 1 1 Core 4 | . . . 4 Reactor . | . . . . Propulsion 14 | 4 . 2 8 Treads 2 | 2 . . . Leg 6 | . . . 6 Wheel 5 | 2 . 2 1 Hover . | . . . . Flight 1 | . . . 1 Utility 8 | 1 1 1 5 Device 2 | . . . 2 Storage 3 | 1 . . 2 Processor 2 | . 1 1 . Hackware . | . . . . Protection 1 | . . . 1 Artifact . | . . . . Weapon 17 | 2 . 3 12 Energy Gun 9 | 1 . 1 7 Energy Cannon . | . . . . Ballistic Gun 4 | 1 . 2 1 Ballistic Cannon . | . . . . Launcher 3 | . . . 3 Special Weapon . | . . . . Impact Weapon . | . . . . Slashing Weapon 1 | . . . 1 Piercing Weapon . | . . . . Special Melee Weapon . | . . . . Unidentified Prototypes 2 | . . 1 1 Parts Lost 20 | . . . 20 Power 4 | . . . 4 Propulsion 8 | . . . 8 Utility 2 | . . . 2 Weapon 6 | . . . 6 Highest Loss Streak 10 | . . . 10 To Critical Strikes . | . . . . Average Slot Usage (%) 75 | . 88 96 57 Engine 11 | . 14 22 5 Core 1 | . . . 3 Leg 3 | . . . 7 Wheel 16 | . 28 20 9 Storage 9 | . 14 11 5 Processor 11 | . 3 22 10 Protection 1 | . . . 2 Energy Gun 7 | . 14 7 5 Ballistic Gun 8 | . 14 11 4 Naked Turns . | . . . . Heaviest Build 27 | 12 14 24 27 Greatest Support 36 | 26 26 26 36 Greatest Overweight (x) 1 | . . 1 1 Average Overweight (x) . | . . . . Largest Inventory Capacity 8 | 8 8 8 8 Average Capacity 7 | 7 8 8 6 Most Carried 8 | 6 8 8 6 Average Carried 5 | 5 7 6 3 Final Capacity 8 | 8 8 8 8 Final Carried 8 | 6 8 6 . Class Distribution -------------------- 100% | Mutant Dominant Class ---------------- Mutant | -10/Materials Mutant | -9/Materials Mutant | -8/Materials Resources | -11 -10 -9 -8 ----------- Run | Jun Mat Mat Mat Matter Collected 766 | 206 90 78 392 Remotely . | . . . . Salvage Created 633 | . 90 134 409 Parts 53 | . 14 8 31 Haulers Intercepted . | . . . . Recyclers Shooed . | . . . . Parts Field Recycled . | . . . . Retrieved Matter . | . . . . Parts Self-Destructed . | . . . . Prevented . | . . . . Kills | -11 -10 -9 -8 ------- Run | Jun Mat Mat Mat Combat Hostiles Destroyed 19 | . 6 2 11 Melee 2 | . . . 2 Guns 14 | . 6 2 6 AOE 3 | . . . 3 Classes Destroyed 8 | . 2 2 4 Worker 2 | . . . 2 Mechanic 1 | . . . 1 Operator 2 | . . 1 1 Watcher 1 | . 1 . . Swarmer 9 | . 6 . 3 Cutter 2 | . . . 2 Grunt 4 | . . . 4 Sentry 4 | . . 2 2 Best Kill Streak 5 | . 4 1 5 Combat Bots Only 5 | . 3 1 5 Max Kills in Single Turn 2 | . 1 1 2 Gunslinging . | . . . . Exploded 1 | . . . 1 Melee 1 | . . . 1 Uniques/NPCs Destroyed . | . . . . Combat | -11 -10 -9 -8 -------- Run | Jun Mat Mat Mat Damage Taken 2472 | . 239 160 2073 Core 735 | . 119 58 558 Absorbed by Shields 44 | . . . 44 Regen/Repaired (Parts) 99 | . . 99 . Core Remaining (%) 79 | 100 52 85 . Volleys Fired 82 | . 13 12 57 Largest 2 | . 2 2 2 Hottest 86 | . 60 63 86 Shots Fired 119 | . 26 23 70 Gun 110 | . 26 23 61 Cannon . | . . . . Launcher 9 | . . . 9 Special . | . . . . Kinetic 58 | . 13 12 33 Thermal 52 | . 13 11 28 Explosive 9 | . . . 9 Electromagnetic . | . . . . Robot Hit Streak 15 | . 3 15 13 Robot Miss Streak 3 | . 2 1 3 Penetration Max . | . . . . Secondary Targets 2 | . 2 . . Max Gunslinging Chain 1 | . 1 . . Shots Hit Robots 79 | . 13 19 47 Core Hits 50 | . 10 7 33 Critical Kills . | . . . . Critical Parts Destroyed . | . . . . Critical Strikes . | . . . . Melee Attacks 3 | . . . 3 Impact . | . . . . Slashing 3 | . . . 3 Piercing . | . . . . Sneak Attacks . | . . . . Combat Hostiles . | . . . . Follow-up Attacks . | . . . . Damage Inflicted 1406 | . 128 208 1070 Guns 905 | . 128 208 569 Cannons . | . . . . Explosions 437 | . . . 437 Melee 40 | . . . 40 Ramming 24 | . . . 24 Kinetic 454 | . 50 123 281 Thermal 451 | . 78 85 288 Explosive 437 | . . . 437 Electromagnetic . | . . . . Impact . | . . . . Slashing 40 | . . . 40 Piercing . | . . . . Highest Corruption 4 | . . 4 1 Average Corruption 1 | . . 4 1 Corruption Purged . | . . . . Corruption Blocked . | . . . . Effects 3 | . . 1 2 Matter Fused 1 | . . 1 . Energy Discharges 2 | . . . 2 Overload Shots . | . . . . Overflow Damage 10 | . . . 10 Projectiles . | . . . . Explosions 10 | . . . 10 Melee . | . . . . Knockbacks . | . . . . Impact . | . . . . Kinetic . | . . . . Secondary . | . . . . Self-Inflicted Damage 27 | . . . 27 Shots 2 | . . . 2 Rammed 5 | . . . 5 Targets Rammed 5 | . . . 5 Kicked . | . . . . Crushed . | . . . . Highest Temperature 232 | . 40 111 232 Average Temperature 53 | . 24 45 66 Received Heat Transfer 790 | . . 54 736 Siege Activations . | . . . . Robots Corrupted . | . . . . Combat Hostiles . | . . . . Parts Fried . | . . . . Impact Corruptions . | . . . . Robots Melted . | . . . . Combat Hostiles . | . . . . Parts Melted 1 | . . 1 . Heat Transferred 1043 | . 175 200 668 Parts Sabotaged . | . . . . Parts Stolen . | . . . . Parts Stripped . | . . . . Power Chain Reactions . | . . . . Missiles Intercepted . | . . . . Alert | -11 -10 -9 -8 ------- Run | Jun Mat Mat Mat Peak Influence 349 | . 177 189 349 Initial 79 | . . 74 79 Average 123 | . 99 144 197 Maximum Alert Level 1 | . . . 1 Low Security (%) 82 | 100 100 100 53 Level 1 17 | . . . 46 Level 2 . | . . . . Level 3 . | . . . . Level 4 . | . . . . Level 5 . | . . . . High Security . | . . . . Max Security . | . . . . Squads Dispatched 5 | . 1 . 4 Investigation . | . . . . Extermination . | . . . . Reinforcement 5 | . 1 . 4 Assault . | . . . . Garrison . | . . . . Intercept . | . . . . Searches Triggered . | . . . . Construction Impeded . | . . . . Haulers Reinforced . | . . . . Active Scanning Responses . | . . . . Cargo Convoy Interrupts . | . . . . Stealth | -11 -10 -9 -8 --------- Run | Jun Mat Mat Mat Distress Signals 5 | . . . 5 Communications Jammed . | . . . . Distress Signals . | . . . . Times Spotted 40 | . 10 5 25 Peak Tracking Total 9 | . 6 2 9 Tactical Retreats 3 | . . . 3 Traps | -11 -10 -9 -8 ------- Run | Jun Mat Mat Mat Traps Triggered . | . . . . Indirectly . | . . . . Trap Hack Attempts . | . . . . Triggered . | . . . . Disarmed . | . . . . Reprogrammed . | . . . . Reused . | . . . . Traps Extracted . | . . . . Installed . | . . . . Triggered . | . . . . Machines | -11 -10 -9 -8 ---------- Run | Jun Mat Mat Mat Machines Disabled 2 | . . . 2 Max in Single Turn 2 | . . . 2 Machines Repaired . | . . . . Machines Sabotaged . | . . . . Overloaded Fab Kills . | . . . . Hacking | -11 -10 -9 -8 --------- Run | Jun Mat Mat Mat Machines Accessed 9 | . 3 1 5 Terminals 4 | . 1 . 3 Fabricators . | . . . . Repair Stations 1 | . . 1 . Recycling Units 2 | . 2 . . Scanalyzers 2 | . . . 2 Garrison Access . | . . . . Total Hacks 26 | . 7 6 13 Successful 20 | . 5 5 10 Failed 6 | . 2 1 3 Catastrophic . | . . . . Database Lockouts . | . . . . Manual . | . . . . Terminals 8 | . 2 . 6 Fabricators . | . . . . Repair Stations 6 | . . 6 . Recycling Units 5 | . 5 . . Scanalyzers 7 | . . . 7 Garrison Access . | . . . . Terminal Hacks 6 | . 2 . 4 Record 1 | . . . 1 Prototype ID Bank 3 | . 1 . 2 Terminal Index 1 | . . . 1 Locate Traps 1 | . 1 . . Fabricator Hacks . | . . . . Repair Station Hacks 5 | . . 5 . Scan Component 2 | . . 2 . Repair 2 | . . 2 . Refit 1 | . . 1 . Recycling Unit Hacks 3 | . 3 . . Report Inventory 2 | . 2 . . Retrieve Components 1 | . 1 . . Scanalyzer 6 | . . . 6 Insert Component 3 | . . . 3 Analyze 3 | . . . 3 Garrison Access Hacks . | . . . . Unauthorized Hacks . | . . . . Terminals . | . . . . Fabricators . | . . . . Repair Stations . | . . . . Recycling Units . | . . . . Scanalyzers . | . . . . Garrison Access . | . . . . Data Cores Recovered 1 | . . 1 . Used . | . . . . Hacking Detections 5 | . 2 . 3 Full Trace Events . | . . . . Feedback Events . | . . . . Feedback Blocked . | . . . . Robot Schematics Acquired . | . . . . Robots Built . | . . . . Authchips . | . . . . Time . | . . . . Total Robot Build Rating . | . . . . Part Schematics Acquired 2 | . . . 2 Parts Built . | . . . . Authchips . | . . . . Time . | . . . . Total Part Build Rating . | . . . . Parts Repaired 2 | . . 2 . Time 52 | . . 52 . Parts Recycled . | . . . . Recycled Matter . | . . . . Retrieved Matter . | . . . . Retrieved Components 1 | . 1 . . Parts Scanalyzed 3 | . . . 3 Part Schematics Acquired 2 | . . . 2 Parts Damaged . | . . . . Bothacking | -11 -10 -9 -8 ------------ Run | Jun Mat Mat Mat Used RIF Installer . | . . . . Robots Hacked . | . . . . Non-combat . | . . . . Combat . | . . . . Robot Hacks Applied . | . . . . Relay Couplers Released . | . . . . Fabnet Peak Effective % . | . . . . Robots Rewired . | . . . . Allies Hacked . | . . . . Hacks Repelled . | . . . . Allies | -11 -10 -9 -8 -------- Run | Jun Mat Mat Mat Total Allies . | . . . . Largest Group . | . . . . Highest-Rated Group . | . . . . Highest-Rated Ally . | . . . . Total Orders . | . . . . Ally Attacks . | . . . . Total Damage . | . . . . Kills . | . . . . Allies Corrupted . | . . . . Allies Melted . | . . . . Intel | -11 -10 -9 -8 ------- Run | Jun Mat Mat Mat Robot Analysis Total . | . . . . Derelict Logs Recovered . | . . . . Drone Launches . | . . . . Drone Recoveries . | . . . . Exploration | -11 -10 -9 -8 ------------- Run | Jun Mat Mat Mat Turns Passed 1352 | 308 262 268 514 Spaces Moved 811 | 52 230 166 363 Core 166 | 8 . . 158 Treads . | . . . . Legs 57 | . . . 57 Wheels 586 | 44 230 166 146 Hover . | . . . . Flight 2 | . . . 2 Fastest Speed 45 | 50 90 90 45 Average Speed 85 | 83 90 90 80 Slowest Speed 190 | 90 90 115 190 Overloaded Moves . | . . . . Propulsion Burnouts . | . . . . Robots Hopped . | . . . . Cave-ins Triggered . | . . . . Exploration Rate (%) 23 | 4 41 20 29 Regions Visited 3 Branch Regions . Pre-discovered Areas . | . . . . Known Exits Taken . | . . . . Unknown Exits Taken 3 | 1 1 1 . Scrap Searched . | . . . . Spaces Dug . | . . . . Terrain Destroyed 72 | . . . 72 Melee . | . . . . Projectile . | . . . . AOE 72 | . . . 72 Terrain Rammed . | . . . . Walls Destroyed . | . . . . Machines Disabled . | . . . . Actions | -11 -10 -9 -8 --------- Run | Jun Mat Mat Mat Total 1363 | 317 265 265 516 Wait 345 | 244 5 67 29 Move 808 | 51 229 165 363 Hop . | . . . . Pick Up 44 | 12 9 7 16 Fast Attach . | . . . . Attach 47 | 8 3 6 30 Detach 10 | 2 . . 8 Swap 1 | . . 1 . Drop 18 | . 6 7 5 Fire 82 | . 13 12 57 Melee 3 | . . . 3 Ram 5 | . . . 5 Kick . | . . . . Crush . | . . . . Escape Stasis . | . . . . Rewire . | . . . . Trap . | . . . . Miscellaneous . | . . . . Route ------- -11/Junkyard -10/Materials (discovered 2 exits: *Mat / [*Min]) -9/Materials -8/Materials History --------- Turn | Location | Event 26 | -11/Junkyard | Discovered new exit (range 16) 309 | -11/Junkyard | Entered Materials 310 | -10/Materials | Build established: Mutant 505 | -10/Materials | Discovered new exit (range 17) 562 | -10/Materials | Discovered new exit (range 3) 571 | -10/Materials | Entered another Materials area 571 | -9/Materials | Evolved 2 slots: Power x1, Utility x1 740 | -9/Materials | Repaired Wheel 771 | -9/Materials | Repaired Sml. Laser 806 | -9/Materials | Discovered new exit (range 17) 839 | -9/Materials | Entered another Materials area 839 | -8/Materials | Evolved 2 slots: Propulsion x1, Utility x1 1171 | -8/Materials | Lost 7 parts (1p4n2w) 1248 | -8/Materials | Core integrity fell below 50% 1343 | -8/Materials | Core integrity fell below 20% 1353 | -8/Materials | Destroyed by G-47 Trooper with Particle Gun Last Messages --------------- 01297_ U-05 Engineer builds a Wall. 01297_ Acquired 57 matter. 01298_ Critical hit (Burn: +37). 01299_ Acquired Aluminum Leg. 01301_ U-05 Engineer lays Concrete. 01301_ Lgt. Nuclear Core destroyed. 01302_ U-05 Engineer builds a Wall. 01309_ U-05 Engineer lays Concrete. 01311_ U-05 Engineer builds a Wall. 01315_ System corrupted: Energy discharge (-27). 01315_ ALERT: Hostiles spotted, dispatching reinforcements to Terminal M004. 01318_ Acquired 54 matter. 01326_ Beam Rifle destroyed. 01328_ Sml. Laser destroyed. 01328_ Critical hit (Burn: +37). 01339_ System corrupted: Energy discharge (-33). 01346_ Aluminum Leg destroyed. 01352_ Acquired Com. Battery. 01352_ K-01 Serf cleans the Nuclear Reactor. Map ----- +----------------------------------------------------+ | ?????????????????????????????????????????????????? | | ########?????????????????????????????????????????? | | # #?????????????????????????????????????????? | | # "" #?????????????????????????????????????????? | | # T" #?????????????????????????????????????????? | | + "" #?????????????????????????????????????????? | | # #?????????????????????????????????????????? | | # #?????????????????????????????????????????? | | ########?????????????????????????????????????????? | | #????????????????????????????????????????????????? | | #????????????????????????????????????????????????? | | #????????????????????????????????????????????????? | | +????????????????????????????????????????????????? | | #????????????????????????????????????????????????? | | #????????????????????????????????????????????????? | | ########?????????????????????????????????????????? | | # ! *#?????????#####???????????????????????????? | | # #????????? #???????????????????????????? | | # #????#???"" /#???????????????????????????? | | + "" #????# """"" #???????????????????????????? | | # S"" #????# """"" #???????????????????????????? | | # "" #????# """"" #???????????????????????????? | | ########????# """ #????????#??????????????????? | | #???????????# ######## #???????#??????????? | | #???????????# # !!Y #### #??????????? | | #???????????# # [ @ r + T"????????????? | | #################/#### r k #??????????????????? | | #g """ #??????????????????? | | % ggr """ #??????????????????? | | # """ #??????????????????? | | #################### # #??????????????????? | | ???????????????????# # ! ! #??????????????????? | | ???????????????????# ##########??????????????????? | | ???????????????????# #???????????????????????????? | | ??????????????????? ???????????????????????????? | | ??????????????????? ???????????????????????????? | | ??????????????????? ???????????????????????????? | | ??????????????????? ??????????????????????????? | | ??????????????????? ??????????????????????????? | | ???????????????????# ??????????????????????????? | | ???????????????????? ??????????????????????????? | | ???????????????????? #?????????????????????????? | | ???????????????????? ?#?????????????????????????? | | ???????????????????? ???????????????????????????? | | ?????????????????????????????????????????????????? | | ?????????????????????????????????????????????????? | | ?????????????????????????????????????????????????? | | ?????????????????????????????????????????????????? | | ?????????????????????????????????????????????????? | | ?????????????????????????????????????????????????? | +----------------------------------------------------+ Best States ------------- Heat Dissipation 31 Energy Generation 21 Energy Capacity 430 Matter Stores 300 Matter Capacity 300 Sight Range 18 Terrain Scan Density 10 Armor Coverage 150 Evasion (%) 52 Salvage Targeting 1 Item Schematics ----------------- Mni. Grenade Launcher | -8/Materials | Scanalyzed Com. Wheel | -8/Materials | Scanalyzed Robot Schematics ------------------ None Fabricated ------------ Nothing Alien Tech Used ----------------- None Achievements -------------- None Challenges ------------ None Game ------ Seed ContainmentImpulseBiocell Manual? 0 Play Time 00:24:34 Cumulative 13.2 hours Start 2023.12.10 @ 22:24:30 End 2023.12.10 @ 22:46:31 Sessions 1 Manual Loads 0 Difficulty Rogue Special Mode None Game No. 10 Rogue 6 Adventurer 4 Explorer 0 Win Type - Total 0 Types 0/0/0/0/0/0/0/0/0 Lore% 16 Gallery% 30 Achievement% 19 Wizard Run 0 Options --------- ASCII 0 Keyboard 0 Movement Numpad Keybinds 0 Fullscreen 1 Font 24/Terminus Map View 76x50 Tactical HUD 1 Map Filters NONE Filters NONE Steam 1 RUN: 3b023a6b-b5a2-4336-ade4-ac7a4edf8873